[Event "NJSK 2026 Jeugd A"]
[Site "Helmond, Netherlands"]
[Date "2026.05.01"]
[Round "7.9"]
[White "Van Arendonk, Polle"]
[Black "Fallaux, Storm"]
[Result "1/2-1/2"]
[TimeControl "90min/40moves + 30min + 30sec/move"]
[WhiteTitle "-"]
[BlackTitle "-"]
[WhiteFideId "1072048"]
[BlackFideId "1073095"]
[WhiteElo "2060"]
[BlackElo "2034"]

1. e4 {[%clk 01:30:57]} {[%emt 00:00:02]} e5 {[%clk 01:30:53]} {[%emt
00:00:08]} 2. Nf3 {[%clk 01:31:23]} {[%emt 00:00:04]} Nc6 {[%clk 01:31:17]}
{[%emt 00:00:05]} 3. Bb5 {[%clk 01:31:50]} {[%emt 00:00:04]} a6 {[%clk
01:31:40]} {[%emt 00:00:07]} 4. Ba4 {[%clk 01:32:16]} {[%emt 00:00:03]} Nf6
{[%clk 01:32:04]} {[%emt 00:00:06]} 5. O-O {[%clk 01:32:40]} {[%emt 00:00:07]}
Be7 {[%clk 01:32:29]} {[%emt 00:00:04]} 6. Re1 {[%clk 01:33:04]} {[%emt
00:00:06]} b5 {[%clk 01:32:54]} {[%emt 00:00:05]} 7. Bb3 {[%clk 01:33:31]}
{[%emt 00:00:04]} O-O {[%clk 01:33:14]} {[%emt 00:00:09]} 8. h3 {[%clk
01:33:56]} {[%emt 00:00:05]} Bb7 {[%clk 01:33:38]} {[%emt 00:00:06]} 9. d3
{[%clk 01:32:37]} {[%emt 00:01:49]} d5 {[%clk 01:34:02]} {[%emt 00:00:06]} 10.
exd5 {[%clk 01:29:00]} {[%emt 00:04:07]} Nxd5 {[%clk 01:34:23]} {[%emt
00:00:09]} 11. Nxe5 {[%clk 01:28:07]} {[%emt 00:01:23]} Nd4 {[%clk 01:34:45]}
{[%emt 00:00:08]} 12. Nd2 {[%clk 01:16:51]} {[%emt 00:11:47]} c5 {[%clk
01:34:33]} {[%emt 00:00:42]} 13. Nef3 {[%clk 01:12:01]} {[%emt 00:05:20]} Nxb3
{[%clk 01:33:37]} {[%emt 00:01:26]} 14. axb3 {[%clk 01:11:52]} {[%emt
00:00:38]} Nb4 {[%clk 01:31:30]} {[%emt 00:02:37]} 15. Ne4 {[%clk 01:00:37]}
{[%emt 00:11:45]} h6 {[%clk 01:21:13]} {[%emt 00:10:47]} 16. Bd2 {[%emt
00:25:53]} f5 {[%clk 01:15:03]} 17. Bxb4 {[%clk 00:41:40]} {[%emt 00:00:45]}
cxb4 {[%clk 01:14:11]} {[%emt 00:01:22]} 18. Ng3 {[%clk 00:41:47]} {[%emt
00:00:22]} Bf6 {[%clk 01:13:11]} {[%emt 00:01:30]} 19. Rb1 {[%clk 00:33:58]}
{[%emt 00:08:18]} Qd5 {[%clk 01:10:35]} {[%emt 00:03:07]} 20. Qe2 {[%clk
00:27:44]} {[%emt 00:06:45]} g6 {[%clk 01:04:43]} {[%emt 00:06:21]} 21. Qe6+
{[%clk 00:26:08]} {[%emt 00:02:06]} Qxe6 {[%clk 01:04:32]} {[%emt 00:00:41]} 22.
Rxe6 {[%clk 00:26:34]} {[%emt 00:00:04]} Bxf3 {[%clk 01:04:46]} {[%emt
00:00:16]} 23. gxf3 {[%clk 00:27:02]} {[%emt 00:00:03]} Kf7 {[%clk 01:04:55]}
{[%emt 00:00:20]} 24. Re2 {[%clk 00:20:39]} {[%emt 00:06:52]} Rfe8 {[%clk
01:01:55]} {[%emt 00:03:31]} 25. c3 {[%clk 00:11:07]} {[%emt 00:10:02]} bxc3
{[%clk 01:00:55]} {[%emt 00:01:29]} 26. bxc3 {[%clk 00:11:34]} {[%emt
00:00:04]} Bxc3 {[%clk 01:00:48]} {[%emt 00:00:37]} 27. Rc2 {[%clk 00:11:55]}
{[%emt 00:00:08]} Be5 {[%clk 00:52:17]} {[%emt 00:09:03]} 28. Ne2 {[%clk
00:11:56]} {[%emt 00:00:30]} Rec8 {[%clk 00:45:24]} {[%emt 00:07:21]} 29. Rbc1
{[%clk 00:10:08]} {[%emt 00:02:18]} Rxc2 {[%clk 00:45:18]} {[%emt 00:00:37]} 30.
Rxc2 {[%clk 00:10:37]} {[%emt 00:00:01]} Ke6 {[%clk 00:45:29]} {[%emt
00:00:18]} 31. Rc6+ {[%clk 00:06:48]} {[%emt 00:04:20]} Kd5 {[%clk 00:40:39]}
{[%emt 00:05:20]} 32. Rxg6 {[%clk 00:07:10]} {[%emt 00:00:08]} a5 {[%clk
00:40:47]} {[%emt 00:00:21]} 33. d4 {[%clk 00:04:48]} {[%emt 00:02:53]} Bxd4
{[%clk 00:38:09]} {[%emt 00:03:08]} 34. Nf4+ {[%clk 00:05:12]} {[%emt
00:00:06]} Ke5 {[%clk 00:37:35]} {[%emt 00:01:03]} 35. Nd3+ {[%clk 00:05:38]}
{[%emt 00:00:05]} Kd5 {[%clk 00:37:59]} {[%emt 00:00:06]} 36. Nf4+ {[%clk
00:06:04]} {[%emt 00:00:04]} Ke5 {[%clk 00:37:52]} {[%emt 00:00:37]} 37. Nd3+
{[%clk 00:06:31]} {[%emt 00:00:03]} Kd5 {[%clk 00:38:13]} {[%emt 00:00:09]} 38.
Nf4+ {[%clk 00:06:57]} {[%emt 00:00:04]} Ke5 {[%emt 00:00:03]} 1/2-1/2

[Event "NJSK 2026 Jeugd A"]
[Site "Helmond, Netherlands"]
[Date "2026.05.01"]
[Round "8.1"]
[White "Terlouw, Wouter"]
[Black "Ritzerveld, Noah"]
[Result "1/2-1/2"]
[TimeControl "90min/40moves + 30min + 30sec/move"]
[WhiteTitle "-"]
[BlackTitle "-"]
[WhiteFideId "1087401"]
[BlackFideId "1085760"]
[WhiteElo "2272"]
[BlackElo "2205"]

1. Nf3 {[%clk 00:05:06]} Nf6 {[%clk 00:05:03]} {[%emt 00:00:07]} 2. g3 {[%clk
00:05:08]} c5 {[%clk 00:05:05]} {[%emt 00:00:03]} 3. Bg2 {[%clk 00:05:10]}
{[%emt 00:00:03]} Nc6 {[%clk 00:05:06]} {[%emt 00:00:15]} 4. O-O {[%clk
00:05:11]} {[%emt 00:00:09]} e5 {[%clk 00:05:03]} {[%emt 00:00:10]} 5. e4
{[%clk 00:05:13]} Be7 {[%clk 00:05:02]} 6. Nc3 {[%clk 00:05:13]} d6 {[%clk
00:04:57]} 7. d3 {[%clk 00:05:09]} O-O {[%clk 00:04:57]} 8. a4 {[%clk
00:05:09]} Be6 {[%clk 00:04:47]} {[%emt 00:00:11]} 9. h3 {[%clk 00:04:53]}
{[%emt 00:00:19]} h6 {[%clk 00:04:34]} {[%emt 00:00:16]} 10. Nd2 {[%clk
00:04:51]} {[%emt 00:00:04]} d5 {[%clk 00:04:27]} {[%emt 00:00:11]} 11. f4
{[%clk 00:04:20]} {[%emt 00:00:34]} dxe4 {[%clk 00:03:38]} {[%emt 00:00:52]} 12.
f5 {[%clk 00:03:56]} {[%emt 00:00:27]} Bd7 {[%clk 00:03:17]} {[%emt 00:00:24]}
13. Ndxe4 {[%clk 00:03:47]} {[%emt 00:00:12]} Nd4 {[%clk 00:03:02]} {[%emt
00:00:18]} 14. Nxf6+ {[%clk 00:03:25]} {[%emt 00:00:24]} Bxf6 {[%clk 00:03:03]}
{[%emt 00:00:02]} 15. Bxb7 {[%clk 00:03:26]} {[%emt 00:00:02]} Rb8 {[%clk
00:02:22]} {[%emt 00:00:46]} 16. Be4 {[%clk 00:03:27]} {[%emt 00:00:02]} Bg5
{[%clk 00:02:01]} {[%emt 00:00:23]} 17. Kh2 {[%clk 00:02:35]} {[%emt 00:00:55]}
Rb6 {[%clk 00:01:01]} {[%emt 00:01:02]} 18. Nd5 {[%clk 00:01:37]} {[%emt
00:01:01]} Ra6 {[%clk 00:00:39]} {[%emt 00:00:26]} 19. c3 {[%clk 00:00:51]}
{[%emt 00:00:50]} Nxf5 {[%clk 00:00:22]} {[%emt 00:00:20]} 20. Bxg5 {[%clk
00:00:41]} {[%emt 00:00:12]} hxg5 {[%clk 00:00:24]} 21. Bxf5 {[%clk 00:00:36]}
{[%emt 00:00:08]} Bxf5 {[%clk 00:00:26]} {[%emt 00:00:01]} 22. Rxf5 {[%clk
00:00:37]} {[%emt 00:00:02]} Qxd5 {[%clk 00:00:28]} 23. Rxg5 {[%clk 00:00:33]}
{[%emt 00:00:07]} Rd8 {[%clk 00:00:13]} {[%emt 00:00:18]} 24. Qe2 {[%clk
00:00:19]} {[%emt 00:00:17]} Qxd3 {[%clk 00:00:09]} {[%emt 00:00:07]} 25. Rxe5
{[%clk 00:00:21]} Rb6 {[%clk 00:00:06]} {[%emt 00:00:06]} 26. Re8+ {[%clk
00:00:19]} {[%emt 00:00:05]} Kh7 {[%clk 00:00:07]} {[%emt 00:00:03]} 27. Qh5+
{[%clk 00:00:21]} Rh6 {[%clk 00:00:09]} 28. Qe2 {[%clk 00:00:12]} {[%emt
00:00:12]} Rxh3+ {[%clk 00:00:06]} {[%emt 00:00:06]} 29. Kxh3 {[%clk 00:00:12]}
{[%emt 00:00:03]} Qd7+ {[%clk 00:00:08]} 30. Kg2 {[%clk 00:00:10]} {[%emt
00:00:05]} Rxe8 {[%clk 00:00:10]} {[%emt 00:00:01]} 31. Qf2 {[%clk 00:00:07]}
{[%emt 00:00:07]} Qd5+ {[%clk 00:00:12]} 32. Kg1 {[%clk 00:00:08]} Kg8 {[%clk
00:00:11]} {[%emt 00:00:03]} 33. Rf1 {[%clk 00:00:09]} {[%emt 00:00:02]} Qc4
{[%clk 00:00:09]} {[%emt 00:00:06]} 34. Qf4 {[%clk 00:00:10]} {[%emt 00:00:03]}
Qxf4 {[%clk 00:00:09]} {[%emt 00:00:02]} 35. Rxf4 {[%clk 00:00:12]} {[%emt
00:00:03]} Re2 {[%clk 00:00:10]} {[%emt 00:00:03]} 36. Rc4 {[%clk 00:00:09]}
{[%emt 00:00:03]} Rxb2 {[%clk 00:00:10]} {[%emt 00:00:04]} 37. Rxc5 {[%clk
00:00:12]} Rc2 {[%clk 00:00:05]} {[%emt 00:00:08]} 1/2-1/2

[Event "NJSK 2026 Jeugd A"]
[Site "Helmond, Netherlands"]
[Date "2026.05.01"]
[Round "9.1"]
[White "Ten Dam, Bram"]
[Black "Terlouw, Wouter"]
[Result "0-1"]
[TimeControl "90min/40moves + 30min + 30sec/move"]
[WhiteTitle "-"]
[BlackTitle "-"]
[WhiteFideId "40104877"]
[BlackFideId "1087401"]
[WhiteElo "2363"]
[BlackElo "2272"]

1. e4 {[%clk 00:05:03]} {[%emt 00:00:02]} c5 {[%clk 00:05:06]} 2. Nc3 {[%clk
00:05:05]} {[%emt 00:00:03]} Nc6 {[%clk 00:05:08]} 3. g3 {[%clk 00:05:06]}
{[%emt 00:00:02]} g6 {[%clk 00:05:10]} 4. Bg2 {[%clk 00:05:08]} {[%emt
00:00:01]} Bg7 {[%clk 00:05:13]} 5. d3 {[%clk 00:05:10]} d6 {[%clk 00:05:15]} 6.
Be3 {[%clk 00:05:10]} {[%emt 00:00:03]} e5 {[%clk 00:05:17]} 7. Qd2 {[%clk
00:05:08]} {[%emt 00:00:06]} Nd4 {[%clk 00:05:12]} {[%emt 00:00:08]} 8. Nd1
{[%clk 00:05:01]} {[%emt 00:00:10]} Ne7 {[%clk 00:05:12]} {[%emt 00:00:05]} 9.
c3 {[%clk 00:05:02]} {[%emt 00:00:02]} Ne6 {[%clk 00:05:14]} {[%emt 00:00:04]}
10. Ne2 {[%clk 00:04:45]} {[%emt 00:00:16]} f5 {[%clk 00:04:34]} {[%emt
00:00:43]} 11. Bh6 {[%clk 00:04:36]} {[%emt 00:00:12]} Bf6 {[%clk 00:04:12]}
{[%emt 00:00:24]} 12. Ne3 {[%clk 00:03:40]} {[%emt 00:00:59]} f4 {[%clk
00:02:56]} {[%emt 00:01:20]} 13. Nd5 {[%clk 00:03:18]} {[%emt 00:00:25]} Ng8
{[%clk 00:02:37]} {[%emt 00:00:21]} 14. gxf4 {[%clk 00:02:18]} {[%emt
00:01:03]} Nxh6 {[%clk 00:02:36]} {[%emt 00:00:04]} 15. f5 {[%clk 00:02:20]}
{[%emt 00:00:02]} Nf4 {[%clk 00:02:33]} {[%emt 00:00:06]} 16. Nexf4 {[%clk
00:02:12]} {[%emt 00:00:11]} exf4 {[%clk 00:02:34]} {[%emt 00:00:02]} 17. Qxf4
{[%clk 00:01:59]} {[%emt 00:00:15]} Bg5 {[%clk 00:02:16]} {[%emt 00:00:21]} 18.
Qg3 {[%clk 00:02:01]} {[%emt 00:00:01]} gxf5 {[%clk 00:01:47]} {[%emt
00:00:32]} 19. h4 {[%clk 00:02:02]} {[%emt 00:00:03]} f4 {[%clk 00:01:48]}
{[%emt 00:00:02]} 20. Qxg5 {[%clk 00:02:01]} {[%emt 00:00:04]} Nf7 {[%clk
00:01:31]} {[%emt 00:00:19]} 21. Qxd8+ {[%clk 00:01:42]} {[%emt 00:00:22]} Kxd8
{[%clk 00:01:34]} 22. Nxf4 {[%clk 00:01:44]} Ne5 {[%clk 00:01:36]} 23. d4
{[%clk 00:01:29]} {[%emt 00:00:18]} cxd4 {[%clk 00:01:31]} {[%emt 00:00:08]} 24.
cxd4 {[%clk 00:01:31]} Nc6 {[%clk 00:01:33]} {[%emt 00:00:01]} 25. O-O-O {[%clk
00:01:03]} {[%emt 00:00:31]} Rf8 {[%clk 00:01:34]} {[%emt 00:00:01]} 26. Nh3
{[%clk 00:00:52]} {[%emt 00:00:15]} Bxh3 {[%clk 00:01:18]} {[%emt 00:00:19]} 27.
Bxh3 {[%clk 00:00:53]} {[%emt 00:00:02]} Rxf2 {[%clk 00:01:19]} {[%emt
00:00:02]} 28. Rhg1 {[%clk 00:00:55]} {[%emt 00:00:01]} Kc7 {[%clk 00:01:14]}
{[%emt 00:00:08]} 29. Rg7+ {[%clk 00:00:56]} {[%emt 00:00:01]} Kb6 {[%clk
00:01:16]} {[%emt 00:00:02]} 30. Rxh7 {[%clk 00:00:53]} {[%emt 00:00:06]} Rg8
{[%clk 00:00:57]} {[%emt 00:00:25]} 31. Bf1 {[%clk 00:00:12]} {[%emt 00:00:40]}
Rg1 {[%clk 00:00:39]} {[%emt 00:00:21]} 32. Bd3 {[%clk 00:00:07]} {[%emt
00:00:09]} Rgg2 {[%clk 00:00:39]} {[%emt 00:00:02]} 33. a4 {[%clk 00:00:07]}
{[%emt 00:00:03]} Rxb2 {[%clk 00:00:34]} {[%emt 00:00:08]} 34. Rg7 {[%clk
00:00:08]} Rh2 {[%clk 00:00:33]} {[%emt 00:00:05]} 35. d5 {[%clk 00:00:05]}
{[%emt 00:00:07]} Nd4 {[%clk 00:00:16]} {[%emt 00:00:19]} 36. Bc4 {[%clk
00:00:04]} {[%emt 00:00:04]} Rhc2# {[%clk 00:00:17]} {[%emt 00:00:02]} 0-1

[Event "NJSK 2026 Jeugd A"]
[Site "Helmond, Netherlands"]
[Date "2026.05.01"]
[Round "10.1"]
[White "Ritzerveld, Noah"]
[Black "Ten Dam, Bram"]
[Result "0-1"]
[TimeControl "90min/40moves + 30min + 30sec/move"]
[WhiteTitle "-"]
[BlackTitle "-"]
[WhiteFideId "1085760"]
[BlackFideId "40104877"]
[WhiteElo "2205"]
[BlackElo "2363"]

1. e4 {[%clk 00:05:05]} c6 {[%clk 00:05:05]} {[%emt 00:00:03]} 2. d4 {[%clk
00:05:07]} {[%emt 00:00:02]} d5 {[%clk 00:05:07]} {[%emt 00:00:04]} 3. e5
{[%clk 00:05:09]} {[%emt 00:00:02]} a6 {[%clk 00:05:09]} 4. Be2 {[%clk
00:04:52]} {[%emt 00:00:37]} Bf5 {[%clk 00:05:07]} {[%emt 00:00:10]} 5. Nf3
{[%clk 00:04:53]} {[%emt 00:00:07]} e6 {[%clk 00:05:09]} 6. O-O {[%clk
00:04:54]} Nd7 {[%clk 00:05:10]} {[%emt 00:00:06]} 7. c3 {[%clk 00:04:47]} Ne7
{[%clk 00:05:10]} 8. Na3 {[%clk 00:04:49]} Bg6 {[%clk 00:05:11]} 9. Nc2 {[%clk
00:04:45]} Nf5 {[%clk 00:05:12]} 10. Nfe1 {[%clk 00:04:33]} {[%emt 00:00:05]}
Be7 {[%clk 00:05:09]} {[%emt 00:00:06]} 11. Nd3 {[%clk 00:04:29]} {[%emt
00:00:08]} O-O {[%clk 00:05:03]} {[%emt 00:00:08]} 12. Nf4 {[%clk 00:04:13]}
{[%emt 00:00:19]} c5 {[%clk 00:05:01]} {[%emt 00:00:05]} 13. Nxg6 {[%clk
00:03:50]} {[%emt 00:00:27]} hxg6 {[%clk 00:04:57]} {[%emt 00:00:07]} 14. Ne3
{[%clk 00:03:47]} {[%emt 00:00:06]} cxd4 {[%clk 00:04:50]} {[%emt 00:00:10]} 15.
cxd4 {[%clk 00:03:42]} {[%emt 00:00:08]} Rc8 {[%clk 00:04:47]} {[%emt
00:00:05]} 16. Nxf5 {[%clk 00:03:36]} {[%emt 00:00:09]} gxf5 {[%clk 00:04:49]}
17. Be3 {[%clk 00:03:35]} {[%emt 00:00:03]} f6 {[%clk 00:04:46]} {[%emt
00:00:06]} 18. exf6 {[%clk 00:03:23]} {[%emt 00:00:16]} Nxf6 {[%clk 00:04:42]}
{[%emt 00:00:08]} 19. Qb3 {[%clk 00:03:10]} {[%emt 00:00:18]} Qd7 {[%clk
00:04:40]} {[%emt 00:00:04]} 20. Bf4 {[%clk 00:02:56]} {[%emt 00:00:16]} Bd6
{[%clk 00:04:42]} {[%emt 00:00:01]} 21. Bxd6 {[%clk 00:02:44]} {[%emt
00:00:15]} Qxd6 {[%emt 00:00:03]} 22. Rac1 {[%clk 00:02:45]} Ne4 {[%clk
00:04:34]} {[%emt 00:00:14]} 23. Rxc8 {[%clk 00:02:21]} {[%emt 00:00:26]} Rxc8
{[%clk 00:04:34]} {[%emt 00:00:03]} 24. Qxb7 {[%clk 00:02:22]} {[%emt
00:00:02]} Rb8 {[%clk 00:04:34]} {[%emt 00:00:03]} 25. Qxa6 {[%clk 00:02:21]}
{[%emt 00:00:04]} Rxb2 {[%clk 00:04:34]} {[%emt 00:00:03]} 26. Qa8+ {[%clk
00:02:06]} {[%emt 00:00:18]} Kh7 {[%clk 00:04:32]} {[%emt 00:00:05]} 27. Bd3
{[%clk 00:01:05]} {[%emt 00:01:04]} Qf4 {[%clk 00:04:09]} {[%emt 00:00:24]} 28.
Bxe4 {[%clk 00:00:38]} {[%emt 00:00:32]} Qxe4 {[%clk 00:04:07]} {[%emt
00:00:04]} 29. a4 {[%clk 00:00:25]} {[%emt 00:00:23]} Rb1 {[%clk 00:03:49]}
{[%emt 00:00:14]} 30. Qa6 {[%clk 00:00:13]} {[%emt 00:00:15]} Rxf1+ {[%clk
00:03:49]} {[%emt 00:00:03]} 31. Qxf1 {[%clk 00:00:14]} {[%emt 00:00:02]} Qxd4
{[%clk 00:03:49]} {[%emt 00:00:03]} 32. a5 {[%clk 00:00:16]} {[%emt 00:00:02]}
Qa4 {[%clk 00:03:37]} {[%emt 00:00:14]} 33. a6 {[%clk 00:00:18]} {[%emt
00:00:02]} d4 {[%clk 00:03:39]} 34. h4 {[%clk 00:00:18]} {[%emt 00:00:02]} Qa3
{[%clk 00:03:27]} {[%emt 00:00:16]} 35. Qe2 {[%clk 00:00:12]} {[%emt 00:00:09]}
d3 {[%clk 00:03:27]} {[%emt 00:00:02]} 36. Qh5+ {[%clk 00:00:09]} {[%emt
00:00:07]} Kg8 {[%clk 00:03:29]} {[%emt 00:00:01]} 37. Qe8+ {[%clk 00:00:11]}
Kh7 {[%clk 00:03:32]} 38. Qh5+ {[%clk 00:00:07]} {[%emt 00:00:08]} Kg8 {[%clk
00:03:32]} {[%emt 00:00:02]} 39. Qe8+ {[%clk 00:00:08]} {[%emt 00:00:02]} Kh7
{[%clk 00:03:34]} {[%emt 00:00:01]} 40. Qxe6 {[%clk 00:00:06]} {[%emt
00:00:06]} Qc1+ {[%clk 00:03:01]} {[%emt 00:00:35]} 41. Kh2 {[%clk 00:00:07]}
{[%emt 00:00:03]} Qf4+ {[%clk 00:03:03]} 42. Kg1 {[%clk 00:00:05]} {[%emt
00:00:04]} d2 {[%emt 00:00:45]} 43. Qe2 {[%clk 00:00:00]} 0-1

[ePGN "0.1;DGT LiveChess/2.2.10"]

[Event "NJSK 2026 Meisjes A"]
[Site "Helmond, Netherlands"]
[Date "2026.04.25"]
[Round "1.1"]
[White "Damen, Josephine"]
[Black "Yildirim, Azra"]
[Result "1-0"]
[TimeControl "90min/40moves + 30min + 30sec/move"]
[WhiteTitle "-"]
[BlackTitle "-"]
[WhiteFideId "1074369"]
[BlackFideId "1085670"]
[WhiteElo "1982"]
[BlackElo "1560"]

1. e4 {[%clk 01:30:57]} {[%emt 00:00:02]} e5 {[%clk 01:30:56]} {[%emt
00:00:04]} 2. Nf3 {[%clk 01:31:23]} {[%emt 00:00:04]} Nc6 {[%clk 01:31:20]}
{[%emt 00:00:07]} 3. Bc4 {[%clk 01:31:48]} {[%emt 00:00:05]} Bc5 {[%clk
01:31:04]} {[%emt 00:00:46]} 4. c3 {[%clk 01:32:12]} {[%emt 00:00:09]} Nf6
{[%clk 01:28:50]} {[%emt 00:02:42]} 5. d4 {[%clk 01:32:36]} {[%emt 00:00:04]}
exd4 {[%clk 01:27:46]} {[%emt 00:01:35]} 6. cxd4 {[%clk 01:33:00]} {[%emt
00:00:06]} Bb4+ {[%clk 01:27:11]} {[%emt 00:01:05]} 7. Nbd2 {[%clk 01:33:22]}
{[%emt 00:00:07]} Nxe4 {[%clk 01:22:33]} {[%emt 00:05:10]} 8. d5 {[%clk
01:33:47]} {[%emt 00:00:05]} Ne7 {[%clk 01:18:57]} {[%emt 00:04:05]} 9. O-O
{[%clk 01:34:10]} {[%emt 00:00:07]} Nf6 {[%clk 01:17:46]} {[%emt 00:01:42]} 10.
Qb3 {[%clk 01:34:27]} {[%emt 00:00:13]} Bd6 {[%clk 01:16:57]} {[%emt 00:01:19]}
11. Re1 {[%clk 01:34:32]} {[%emt 00:00:24]} O-O {[%clk 01:17:07]} {[%emt
00:00:21]} 12. Ne4 {[%clk 01:34:42]} {[%emt 00:00:20]} Ng6 {[%clk 01:14:00]}
{[%emt 00:03:37]} 13. Nxf6+ {[%clk 01:23:23]} {[%emt 00:11:48]} Qxf6 {[%clk
01:11:56]} {[%emt 00:02:35]} 14. Bg5 {[%clk 01:19:26]} {[%emt 00:04:26]} Qf5
{[%clk 01:10:37]} {[%emt 00:01:49]} 15. Bd3 {[%clk 01:14:25]} {[%emt 00:05:31]}
Qg4 {[%clk 01:09:54]} {[%emt 00:01:13]} 16. Re4 {[%clk 01:10:09]} {[%emt
00:04:46]} Nf4 {[%clk 01:06:58]} {[%emt 00:03:26]} 17. Bxf4 {[%clk 01:05:44]}
{[%emt 00:04:54]} Bxf4 {[%clk 01:06:52]} {[%emt 00:00:38]} 18. g3 {[%clk
00:41:53]} {[%emt 00:24:20]} Qxf3 {[%clk 01:03:08]} {[%emt 00:04:14]} 19. Rxf4
{[%clk 00:42:18]} {[%emt 00:00:05]} Qh5 {[%clk 01:03:13]} {[%emt 00:00:26]} 20.
Rh4 {[%clk 00:42:41]} {[%emt 00:00:06]} Qe5 {[%clk 01:01:37]} {[%emt 00:02:06]}
21. Bxh7+ {[%clk 00:42:45]} {[%emt 00:00:26]} Kh8 {[%clk 01:01:59]} {[%emt
00:00:08]} 22. Qb4 {[%clk 00:36:44]} {[%emt 00:06:30]} d6 {[%clk 01:01:13]}
{[%emt 00:01:17]} 23. Bf5+ {[%clk 00:36:12]} {[%emt 00:01:03]} Kg8 {[%clk
01:01:02]} {[%emt 00:00:41]} 24. Rh8+ {[%clk 00:36:32]} {[%emt 00:00:10]} 1-0